fUST/lending_fUST_20240922
["ID","MTS","AMOUNT","RATE_DAILY","PERIOD"]
[338836252,1726935042936,-373.9400456,0.0001484,2]
[338836254,1726935042945,-500.0,0.00014841,2]
[338836256,1726935042954,-584.33,0.00014841,2]
[338836258,1726935042964,-500.0,0.00014841,2]
[338836260,1726935042973,-500.0,0.00014841,2]
[338836262,1726935042982,-500.0,0.00014841,2]
[338836263,1726935042991,-500.0,0.00014841,2]
[338836265,1726935043001,-500.0,0.00014841,2]
[338836267,1726935043010,-500.0,0.00014841,2]
[338836269,1726935043020,-500.0,0.00014841,2]
[338836272,1726935043030,-500.0,0.00014841,2]
[338836274,1726935043040,-500.0,0.00014841,2]
[338836276,1726935043049,-650.7,0.00014841,2]
[338836278,1726935043059,-500.0,0.00014841,2]
[338836280,1726935043068,-500.0,0.00014841,2]
[338836282,1726935043077,-151.0,0.00014841,2]
[338836284,1726935043086,-2977.66215,0.00014841,2]
[338836287,1726935043096,-2977.66215,0.00014841,2]
[338836289,1726935043105,-151.0,0.00014841,2]
[338836291,1726935043115,-150.112233,0.000149,2]
[338836293,1726935043124,-7140.47594759,0.00014916,2]
[338836295,1726935043133,-500.0,0.00014935,2]
[338836297,1726935043143,-500.0,0.00014935,2]
[338836299,1726935043152,-300.24452277,0.00014935,2]
[338836301,1726935043161,-600.0,0.00014965,2]
[338836303,1726935043171,-600.0,0.00014965,2]
[338836305,1726935043179,-29825.1628464,0.00015017,2]
[338836307,1726935043189,-837.80933678,0.00015017,2]
[338836309,1726935043198,-837.80933678,0.00015019,2]
[338836311,1726935043207,-58788.6199901,0.00015029,2]
[338836313,1726935043220,-25229.53,0.00015029,2]
[338836323,1726935043310,-500.0,0.00014291,2]
[338836325,1726935043320,-2321.436138,0.00014841,2]
[338836327,1726935043330,-1085.00467876,0.00015029,2]
[338836329,1726935043339,-151.0,0.00015029,2]
[338836331,1726935043352,-151.0,0.00015029,2]
[338836333,1726935043362,-902.97813,0.00015029,2]
[338836335,1726935043371,-151.0,0.00015029,2]
[338836337,1726935043381,-151.0,0.00015029,2]
[338836340,1726935043391,-1135.135034,0.00015029,2]
[338836342,1726935043402,-1135.135034,0.00015029,2]
[338836344,1726935043412,-151.0,0.00015029,2]
[338836346,1726935043422,-236.927647,0.00015029,2]
[338836348,1726935043432,-236.927647,0.00015029,2]
[338836350,1726935043441,-2438.641325,0.00015029,2]
[338836352,1726935043452,-2438.641325,0.00015029,2]
[338836354,1726935043462,-1042.941734,0.00015029,2]
[338836356,1726935043471,-1042.941734,0.00015029,2]
[338836358,1726935043481,-233.040417,0.00015029,2]
[338836360,1726935043491,-3305.203623,0.00015029,2]
[338836362,1726935043501,-3305.203623,0.00015029,2]
[338836364,1726935043510,-486.4796,0.00015029,2]
[338836366,1726935043520,-486.4796,0.00015029,2]
[338836368,1726935043530,-151.0,0.00015029,2]
[338836371,1726935043541,-461.754562,0.00015029,2]
[338836373,1726935043553,-461.754562,0.00015029,2]
[338836375,1726935043562,-151.0,0.00015029,2]
[338836377,1726935043572,-2321.436138,0.00015029,2]
[338836379,1726935043581,-837.80933678,0.00015033,2]
[338836381,1726935043591,-859.264866,0.00015043,2]
[338836383,1726935043600,-859.264866,0.00015043,2]
[338836385,1726935043610,-151.0,0.00015043,2]
[338836387,1726935043620,-151.0,0.00015043,2]
[338836389,1726935043630,-1672.5051,0.00015043,2]
[338836391,1726935043641,-1672.5051,0.00015043,2]
[338836393,1726935043654,-643.020074,0.00015043,2]
[338836396,1726935043663,-643.020074,0.00015043,2]
[338836398,1726935043673,-417.003662,0.00015043,2]
[338836400,1726935043687,-417.003662,0.00015043,2]
[338836402,1726935043696,-151.0,0.00015048,2]
[338836404,1726935043706,-150.0,0.00015053,2]
[338836405,1726935043716,-150.90016003,0.00015092,2]
[338836407,1726935043727,-837.80933678,0.00015094,2]
[338836410,1726935043737,-1020.98,0.000151,2]
[338836412,1726935043747,-150.112233,0.000151,2]
[338836414,1726935043757,-500.0,0.00015104,2]
[338836416,1726935043767,-500.0,0.00015104,2]
[338836418,1726935043778,-8222.04,0.00015104,2]
[338836419,1726935043788,-1279.6,0.00015104,2]
[338836421,1726935043797,-533.59,0.00015105,2]
[338836423,1726935043807,-500.0,0.00015113,2]
[338836426,1726935043817,-500.0,0.00015113,2]
[338836428,1726935043826,-418.76433122,0.00015113,2]
[338836430,1726935043836,-500.0,0.00015113,2]
[338836432,1726935043846,-500.0,0.00015113,2]
[338836434,1726935043856,-277.17657893,0.00015113,2]
[338836436,1726935043866,-500.0,0.00015113,2]
[338836438,1726935043876,-500.0,0.00015113,2]
[338836440,1726935043886,-500.0,0.00015113,2]
[338836442,1726935043896,-500.0,0.00015113,2]
[338836444,1726935043905,-500.0,0.00015113,2]
[338836446,1726935043916,-500.0,0.00015113,2]
[338836448,1726935043926,-402.1663439,0.00015113,2]
[338836450,1726935043936,-500.0,0.00015114,2]
[338836452,1726935043945,-551.12,0.00015114,2]
[338836454,1726935043955,-500.0,0.00015114,2]
[338836456,1726935043965,-500.0,0.00015114,2]
[338836458,1726935043975,-500.0,0.00015114,2]
[338836461,1726935043986,-793.34,0.00015114,2]
[338836463,1726935043996,-500.0,0.00015114,2]
[338836465,1726935044005,-500.0,0.00015114,2]
[338836467,1726935044014,-500.0,0.00015114,2]
[338836469,1726935044023,-500.0,0.00015114,2]
[338836471,1726935044034,-200.0,0.00015114,2]
[338836473,1726935044043,-500.0,0.00015115,2]
[338836475,1726935044053,-584.33,0.00015115,2]
[338836477,1726935044063,-500.0,0.00015115,2]
[338836479,1726935044072,-500.0,0.00015115,2]
[338836481,1726935044082,-500.0,0.00015115,2]
[338836483,1726935044091,-500.0,0.00015115,2]
[338836485,1726935044101,-500.0,0.00015115,2]
[338836487,1726935044111,-500.0,0.00015115,2]
[338836489,1726935044120,-500.0,0.00015115,2]
[338836491,1726935044130,-650.7,0.00015115,2]
[338836493,1726935044140,-500.0,0.00015115,2]
[338836495,1726935044150,-500.0,0.00015115,2]
[338836497,1726935044160,-150.112233,0.000152,2]
[338836499,1726935044170,-2213.436559,0.00015295,2]
[338836501,1726935044179,-837.80933678,0.00015369,2]
[338836503,1726935044188,-837.80933678,0.00015378,2]
[338836505,1726935044198,-500.0,0.00015378,2]
[338836507,1726935044207,-500.0,0.00015378,2]
[338836509,1726935044217,-8222.04,0.00015378,2]
[338836510,1726935044227,-1279.6,0.00015378,2]
[338836512,1726935044236,-541.66094288,0.00015378,2]
[338836515,1726935044246,-500.0,0.00015378,2]
[338836516,1726935044255,-240.73955302,0.00015378,2]
[338836518,1726935044265,-500.0,0.00015378,2]
[338836520,1726935044274,-500.0,0.00015378,2]
[338836522,1726935044284,-472.86465399,0.00015378,2]
[338836524,1726935044294,-500.0,0.00015378,2]
[338836526,1726935044304,-500.0,0.00015378,2]
[338836529,1726935044313,-500.0,0.00015378,2]
[338836531,1726935044323,-500.0,0.00015378,2]
[338836533,1726935044332,-500.0,0.00015378,2]
[338836535,1726935044341,-500.0,0.00015378,2]
[338836537,1726935044351,-151.0,0.00015379,2]
[338836538,1726935044360,-533.59,0.00015379,2]
[338836540,1726935044369,-151.0,0.00015379,2]
[338836543,1726935044379,-902.97813,0.00015379,2]
[338836545,1726935044388,-151.0,0.00015379,2]
[338836547,1726935044397,-236.927647,0.00015379,2]
[338836549,1726935044407,-236.927647,0.00015379,2]
[338836551,1726935044416,-3305.203623,0.00015379,2]
[338836553,1726935044426,-3305.203623,0.00015379,2]
[338836555,1726935044435,-486.4796,0.00015379,2]
[338836557,1726935044445,-486.4796,0.00015379,2]
[338836559,1726935044454,-151.0,0.00015379,2]
[338836561,1726935044463,-153.329938,0.00015379,2]
[338836568,1726935044522,-461.754562,0.00015379,2]
[338836570,1726935044531,-461.754562,0.00015379,2]
[338836572,1726935044541,-151.0,0.00015379,2]
[338836574,1726935044551,-2977.66215,0.00015379,2]
[338836576,1726935044559,-2977.66215,0.00015379,2]
[338836578,1726935044569,-151.0,0.00015379,2]
[338836579,1726935044578,-500.0,0.00015387,2]
[338836581,1726935044587,-500.0,0.00015387,2]
[338836583,1726935044596,-602.48346368,0.00015387,2]
[338836585,1726935044605,-500.0,0.00015387,2]
[338836587,1726935044614,-500.0,0.00015387,2]
[338836589,1726935044624,-151.0,0.00015387,2]
[338836591,1726935044633,-151.0,0.00015387,2]
[338836593,1726935044643,-151.0,0.00015387,2]
[338836595,1726935044653,-500.0,0.00015387,2]
[338836597,1726935044662,-1135.135034,0.00015387,2]
[338836599,1726935044671,-1135.135034,0.00015387,2]
[338836601,1726935044684,-500.0,0.00015387,2]
[338836603,1726935044693,-2438.641325,0.00015387,2]
[338836605,1726935044702,-2438.641325,0.00015387,2]
[338836607,1726935044711,-1042.941734,0.00015387,2]
[338836609,1726935044720,-1042.941734,0.00015387,2]
[338836611,1726935044731,-500.0,0.00015387,2]
[338836612,1726935044740,-500.0,0.00015388,2]
[338836614,1726935044749,-551.12,0.00015388,2]
[338836616,1726935044759,-500.0,0.00015388,2]
[338836618,1726935044768,-500.0,0.00015388,2]
[338836620,1726935044777,-859.264866,0.00015388,2]
[338836622,1726935044787,-500.0,0.00015388,2]
[338836624,1726935044796,-859.264866,0.00015388,2]
[338836626,1726935044805,-151.0,0.00015388,2]
[338836628,1726935044814,-151.0,0.00015388,2]
[338836630,1726935044824,-1672.5051,0.00015388,2]
[338836632,1726935044832,-1672.5051,0.00015388,2]
[338836634,1726935044841,-643.020074,0.00015388,2]
[338836636,1726935044851,-793.34,0.00015388,2]
[338836638,1726935044860,-643.020074,0.00015388,2]
[338836640,1726935044869,-417.003662,0.00015388,2]
[338836642,1726935044877,-417.003662,0.00015388,2]
[338836644,1726935044887,-500.0,0.00015388,2]
[338836646,1726935044896,-500.0,0.00015388,2]
[338836648,1726935044905,-200.0,0.00015388,2]
[338836650,1726935044914,-500.0,0.00015389,2]
[338836652,1726935044934,-584.33,0.00015389,2]
[338836654,1726935044953,-500.0,0.00015389,2]
[338836656,1726935044974,-500.0,0.00015389,2]
[338836658,1726935044996,-500.0,0.00015389,2]
[338836660,1726935045018,-500.0,0.00015389,2]
[338836662,1726935045040,-500.0,0.00015389,2]
[338836664,1726935045061,-500.0,0.00015389,2]
[338836666,1726935045082,-554.715286,0.00015389,2]
[338836668,1726935045103,-650.7,0.00015389,2]
[338836670,1726935045124,-500.0,0.00015389,2]
[338836672,1726935045145,-500.0,0.00015389,2]
[338836674,1726935045166,-970.25547393,0.00015389,2]
[338836676,1726935045176,-151.0,0.0001539,2]
[338836678,1726935045185,-151.0,0.0001539,2]
[338836680,1726935045195,-151.0,0.0001539,2]
[338836682,1726935045204,-672.298221,0.0001539,2]
[338836684,1726935045213,-672.298221,0.0001539,2]
[338836686,1726935045222,-150.112233,0.000154,2]
[338836688,1726935045232,-150.112233,0.000154,2]
[338836690,1726935045242,-150.112234,0.000154,2]
[338836692,1726935045252,-418.72562,0.00015406,2]
[338836694,1726935045261,-257.472639,0.00015406,2]
[338836696,1726935045270,-681.628656,0.00015406,2]
[338836698,1726935045280,-1405.047675,0.00015406,2]
[338836700,1726935045291,-170.666025,0.00015406,2]
[338836702,1726935045300,-466.813732,0.00015406,2]
[338836704,1726935045309,-171.648426,0.00015406,2]
[338836706,1726935045318,-167.490248,0.00015406,2]
[338836708,1726935045327,-154.483583,0.00015406,2]
[338836710,1726935045336,-251.235372,0.00015406,2]
[338836712,1726935045345,-837.80933678,0.00015459,2]
[338836714,1726935045354,-837.80933678,0.0001547,2]
[338836716,1726935045363,-837.80933678,0.0001547,2]
[338836718,1726935045373,-161.10785562,0.00015473,2]
[338836720,1726935045382,-501.15771748,0.00015473,2]
[338836722,1726935045392,-500.0,0.00015473,2]
[338836724,1726935045401,-500.0,0.00015473,2]
[338836726,1726935045410,-500.0,0.00015473,2]
[338836728,1726935045419,-500.0,0.00015473,2]
[338836730,1726935045428,-538.89222013,0.00015473,2]
[338836731,1726935045437,-500.0,0.00015473,2]
[338836732,1726935045446,-500.0,0.00015473,2]
[338836733,1726935045455,-500.0,0.00015473,2]
[338836734,1726935045464,-500.0,0.00015473,2]
[338836735,1726935045473,-160.94570368,0.00015473,2]
[338836736,1726935045482,-500.0,0.00015473,2]
[338836737,1726935045491,-500.0,0.00015473,2]
[338836738,1726935045500,-598.82243702,0.00015473,2]
[338836739,1726935045509,-500.0,0.00015473,2]
[338836740,1726935045518,-376.33625533,0.00015473,2]
[338836741,1726935045527,-500.0,0.00015473,2]
[338836742,1726935045538,-500.0,0.00015473,2]
[338836743,1726935045547,-500.0,0.00015473,2]
[338836744,1726935045556,-500.0,0.00015473,2]
[338836745,1726935045565,-500.0,0.00015473,2]
[338836746,1726935045574,-500.80820973,0.00015473,2]
[338836747,1726935045584,-500.0,0.00015473,2]
[338836748,1726935045592,-500.0,0.00015473,2]
[338836750,1726935045601,-500.0,0.00015473,2]
[338836752,1726935045611,-859.264866,0.0001548,2]
[338836754,1726935045620,-859.264866,0.0001548,2]
[338836756,1726935045629,-151.0,0.0001548,2]
[338836758,1726935045639,-151.0,0.0001548,2]
[338836760,1726935045647,-1672.5051,0.0001548,2]
[338836762,1726935045657,-151.0,0.0001548,2]
[338836764,1726935045666,-1672.5051,0.0001548,2]
[338836766,1726935045675,-643.020074,0.0001548,2]
[338836768,1726935045687,-643.020074,0.0001548,2]
[338836770,1726935045697,-193.018,0.0001548,2]
[338836772,1726935045707,-902.97813,0.0001548,2]
[338836774,1726935045716,-417.003662,0.0001548,2]
[338836776,1726935045726,-151.0,0.0001548,2]
[338836778,1726935045736,-417.003662,0.0001548,2]
[338836780,1726935045745,-151.0,0.0001548,2]
[338836781,1726935045754,-1135.135034,0.0001548,2]
[338836783,1726935045763,-1135.135034,0.0001548,2]
[338836785,1726935045772,-151.0,0.0001548,2]
[338836787,1726935045782,-236.927647,0.0001548,2]
[338836789,1726935045791,-236.927647,0.0001548,2]
[338836791,1726935045801,-2438.641325,0.0001548,2]
[338836793,1726935045810,-2438.641325,0.0001548,2]
[338836795,1726935045819,-1042.941734,0.0001548,2]
[338836797,1726935045828,-1042.941734,0.0001548,2]
[338836799,1726935045838,-3305.203623,0.0001548,2]
[338836801,1726935045847,-3305.203623,0.0001548,2]
[338836803,1726935045856,-486.4796,0.0001548,2]
[338836805,1726935045865,-486.4796,0.0001548,2]
[338836807,1726935045875,-151.0,0.0001548,2]
[338836809,1726935045884,-461.754562,0.0001548,2]
[338836811,1726935045893,-461.754562,0.0001548,2]
[338836813,1726935045904,-272.078192,0.0001548,2]
[338836815,1726935045927,-2977.66215,0.0001548,2]
[338836817,1726935045950,-2977.66215,0.0001548,2]
[338836819,1726935045971,-1675.61867356,0.0001548,2]
[338836821,1726935045994,-1675.61867356,0.0001549,2]
[338836823,1726935046016,-151.0,0.0001549,2]
[338836825,1726935046039,-151.0,0.0001549,2]
[338836827,1726935046070,-201.564278,0.0001549,2]
[338836829,1726935046103,-201.564278,0.0001549,2]
[338836831,1726935046132,-859.264866,0.0001549,2]
[338836833,1726935046148,-859.264866,0.0001549,2]
[338836835,1726935046157,-151.0,0.0001549,2]
[338836837,1726935046166,-151.0,0.0001549,2]
[338836839,1726935046175,-1672.5051,0.0001549,2]
[338836841,1726935046184,-151.0,0.0001549,2]
[338836843,1726935046193,-1672.5051,0.0001549,2]
[338836845,1726935046202,-643.020074,0.0001549,2]
[338836847,1726935046212,-643.020074,0.0001549,2]
[338836850,1726935046223,-902.97813,0.0001549,2]
[338836852,1726935046233,-417.003662,0.0001549,2]
[338836854,1726935046243,-151.0,0.0001549,2]
[338836856,1726935046253,-417.003662,0.0001549,2]
[338836858,1726935046262,-151.0,0.0001549,2]
[338836860,1726935046271,-1135.135034,0.0001549,2]
[338836862,1726935046280,-1135.135034,0.0001549,2]
[338836864,1726935046290,-151.0,0.0001549,2]
[338836866,1726935046299,-236.927647,0.0001549,2]
[338836868,1726935046308,-236.927647,0.0001549,2]
[338836870,1726935046317,-2438.641325,0.0001549,2]
[338836872,1726935046327,-2438.641325,0.0001549,2]
[338836874,1726935046338,-1042.941734,0.0001549,2]
[338836876,1726935046348,-1042.941734,0.0001549,2]
[338836878,1726935046357,-3305.203623,0.0001549,2]
[338836880,1726935046366,-3305.203623,0.0001549,2]
[338836882,1726935046376,-486.4796,0.0001549,2]
[338836884,1726935046385,-486.4796,0.0001549,2]
[338836886,1726935046394,-234.445441,0.0001549,2]
[338836888,1726935046403,-461.754562,0.0001549,2]
[338836890,1726935046412,-461.754562,0.0001549,2]
[338836892,1726935046421,-2977.66215,0.0001549,2]
[338836894,1726935046431,-2977.66215,0.0001549,2]
[338836896,1726935046440,-3907.31558357,0.000155,2]
[338836898,1726935046456,-680.02420695,0.000155,2]
[338836929,1726935046747,-500.0,0.00014292,2]
[338836931,1726935046758,-55.16267515,0.00014841,2]
[338836934,1726935046769,-705.45916805,0.00014841,2]
[338836974,1726935047155,-476.53084634,0.00014282,2]
[338836976,1726935047166,-500.0,0.00014291,2]
[338836978,1726935047176,-220.0297958,0.00014841,2]
[338836980,1726935047186,-243.916883,0.00014841,2]
[338836982,1726935047197,-2321.436138,0.00014841,2]
[338836984,1726935047207,-980.651639,0.00015029,2]
[338836986,1726935047218,-243.916883,0.00015029,2]
[338836988,1726935047228,-2321.436138,0.00015029,2]
[338836990,1726935047238,-2321.436138,0.00015389,2]
[338836992,1726935047248,-980.651639,0.00015389,2]
[338836994,1726935047258,-243.916883,0.00015389,2]
[338836996,1726935047267,-2321.436138,0.00015389,2]
[338836999,1726935047277,-73052.92520705,0.000155,2]
[338837001,1726935047288,-151.0,0.000155,2]
[338837003,1726935047297,-151.0,0.000155,2]
[338837005,1726935047307,-151.0,0.000155,2]
[338837007,1726935047316,-151.0,0.000155,2]
[338837009,1726935047325,-151.0,0.000155,2]
[338837011,1726935047335,-672.298221,0.000155,2]
[338837012,1726935047344,-672.298221,0.000155,2]
[338837014,1726935047353,-1626.0,0.000155,2]
[338837016,1726935047363,-150.112233,0.000155,2]
[338837018,1726935047373,-151.0,0.000155,2]
[338837020,1726935047382,-494.197713,0.000155,2]
[338837022,1726935047391,-494.197713,0.000155,2]
[338837024,1726935047400,-4453.875714,0.000155,2]
[338837026,1726935047409,-4453.875714,0.000155,2]
[338837028,1726935047419,-151.0,0.000155,2]
[338837030,1726935047428,-151.0,0.000155,2]
[338837032,1726935047438,-1135.135034,0.000155,2]
[338837034,1726935047447,-1135.135034,0.000155,2]
[338837036,1726935047457,-151.0,0.000155,2]
[338837038,1726935047467,-236.927647,0.000155,2]
[338837040,1726935047476,-236.927647,0.000155,2]
[338837042,1726935047486,-2438.641325,0.000155,2]
[338837044,1726935047495,-2438.641325,0.000155,2]
[338837046,1726935047505,-1042.941734,0.000155,2]
[338837048,1726935047514,-1042.941734,0.000155,2]
[338837050,1726935047523,-3305.203623,0.000155,2]
[338837052,1726935047533,-3305.203623,0.000155,2]
[338837053,1726935047548,-486.4796,0.000155,2]
[338837056,1726935047558,-486.4796,0.000155,2]
[338837058,1726935047567,-461.754562,0.000155,2]
[338837060,1726935047577,-461.754562,0.000155,2]
[338837062,1726935047586,-2977.66215,0.000155,2]
[338837064,1726935047596,-2977.66215,0.000155,2]
[338837066,1726935047606,-2321.436138,0.000155,2]
[338837068,1726935047616,-2321.436138,0.000155,2]
[338837070,1726935047625,-980.651639,0.000155,2]
[338837072,1726935047636,-243.916883,0.000155,2]
[338837074,1726935047646,-980.651639,0.000155,2]
[338837076,1726935047657,-243.916883,0.000155,2]
[338837078,1726935047667,-2321.436138,0.000155,2]
[338837080,1726935047678,-150.90016003,0.00015542,2]
[338837082,1726935047692,-418.72562,0.00015599,2]
[338837084,1726935047702,-257.472639,0.00015599,2]
[338837086,1726935047711,-681.628656,0.00015599,2]
[338837088,1726935047721,-1405.047675,0.00015599,2]
[338837090,1726935047733,-466.813732,0.00015599,2]
[338837092,1726935047742,-167.490248,0.00015599,2]
[338837094,1726935047752,-154.483583,0.00015599,2]
[338837096,1726935047764,-251.235372,0.00015599,2]
[338837098,1726935047796,-151.0,0.00015641,2]
[338837100,1726935047905,-902.97813,0.00015641,2]
[338837102,1726935048002,-420.0,0.00015641,2]
[338837104,1726935048022,-36561.78792052,0.00015641,3]
[338837106,1726935048032,-74260.30034106,0.00015642,3]
[338837108,1726935048044,-859.264866,0.00015642,2]
[338837110,1726935048054,-859.264866,0.00015642,2]
[338837112,1726935048063,-151.0,0.00015642,2]
[338837114,1726935048073,-151.0,0.00015642,2]
[338837117,1726935048086,-1672.5051,0.00015642,2]
[338837119,1726935048097,-1672.5051,0.00015642,2]
[338837121,1726935048106,-643.020074,0.00015642,2]
[338837123,1726935048115,-643.020074,0.00015642,2]
[338837125,1726935048126,-417.003662,0.00015642,2]
[338837127,1726935048135,-417.003662,0.00015642,2]
[338837129,1726935048145,-153.425988,0.00015642,2]
[338837131,1726935048154,-1000.0,0.00015642,2]
[338837133,1726935048163,-1000.0,0.00015642,2]
[338837135,1726935048174,-1000.0,0.00015642,2]
[338837137,1726935048184,-1000.0,0.00015642,2]
[338837139,1726935048194,-1000.0,0.00015642,2]
[338837141,1726935048203,-1000.0,0.00015642,2]
[338837143,1726935048213,-1000.0,0.00015642,2]
[338837145,1726935048222,-1000.0,0.00015642,2]
[338837147,1726935048232,-1000.0,0.00015642,2]
[338837149,1726935048241,-1000.0,0.00015642,2]
[338837151,1726935048251,-1000.0,0.00015642,2]
[338837153,1726935048260,-1000.0,0.00015642,2]
[338837155,1726935048270,-1000.0,0.00015642,2]
[338837157,1726935048280,-1000.0,0.00015642,2]
[338837159,1726935048290,-1000.0,0.00015642,2]
[338837161,1726935048300,-1000.0,0.00015642,2]
[338837163,1726935048310,-1000.0,0.00015642,2]
[338837164,1726935048320,-1000.0,0.00015642,2]
[338837165,1726935048330,-1000.0,0.00015642,2]
[338837166,1726935048339,-1000.0,0.00015642,2]
[338837167,1726935048348,-1000.0,0.00015642,2]
[338837168,1726935048358,-1000.0,0.00015642,2]
[338837170,1726935048367,-1000.0,0.00015642,2]
[338837172,1726935048377,-1000.0,0.00015642,2]
[338837174,1726935048387,-1000.0,0.00015642,2]
[338837176,1726935048396,-1000.0,0.00015642,2]
[338837178,1726935048405,-1000.0,0.00015642,2]
[338837180,1726935048414,-1000.0,0.00015642,2]
[338837182,1726935048424,-1000.0,0.00015642,2]
[338837184,1726935048433,-1000.0,0.00015642,2]
[338837186,1726935048443,-236.927647,0.00015642,2]
[338837188,1726935048453,-273.949894,0.00015642,2]
[338837190,1726935048462,-236.927647,0.00015642,2]
[338837192,1726935048471,-3305.203623,0.00015642,2]
[338837194,1726935048481,-3305.203623,0.00015642,2]
[338837197,1726935048491,-486.4796,0.00015642,2]
[338837198,1726935048500,-486.4796,0.00015642,2]
[338837200,1726935048509,-461.754562,0.00015642,2]
[338837202,1726935048519,-461.754562,0.00015642,2]
[338837205,1726935048528,-2977.66215,0.00015642,2]
[338837207,1726935048540,-2977.66215,0.00015642,2]
[338837209,1726935048549,-168.80439,0.00015652,2]
[338837211,1726935048559,-168.80439,0.00015652,2]
[338837213,1726935048568,-151.0,0.00015652,2]
[338837215,1726935048577,-151.0,0.00015652,2]
[338837217,1726935048586,-151.0,0.00015652,2]
[338837219,1726935048596,-170.946703,0.00015652,2]
[338837221,1726935048605,-170.946703,0.00015652,2]
[338837223,1726935048615,-4087.484948,0.00015652,2]
[338837225,1726935048625,-4087.484948,0.00015652,2]
[338837227,1726935048635,-464.773232,0.00015652,2]
[338837229,1726935048644,-464.773232,0.00015652,2]
[338837231,1726935048653,-151.0,0.00015652,2]
[338837233,1726935048663,-151.584903,0.00015652,2]
[338837235,1726935048672,-2386.960535,0.00015652,2]
[338837237,1726935048683,-2386.960535,0.00015652,2]
[338837239,1726935048693,-1232.259039,0.00015652,2]
[338837241,1726935048703,-1675.280556,0.00015652,2]
[338837243,1726935048712,-1232.259039,0.00015652,2]
[338837245,1726935048722,-1675.280556,0.00015652,2]
[338837247,1726935048732,-1617.74603,0.00015652,2]
[338837249,1726935048741,-1617.74603,0.00015652,2]
[338837251,1726935048750,-231.627965,0.00015652,2]
[338837253,1726935048759,-231.627965,0.00015652,2]
[338837255,1726935048769,-273.681652,0.00015652,2]
[338837256,1726935048778,-273.681652,0.00015652,2]
[338837259,1726935048789,-500.0,0.00015652,2]
[338837260,1726935048798,-500.0,0.00015652,2]
[338837262,1726935048808,-8222.04,0.00015652,2]
[338837264,1726935048817,-1279.6,0.00015652,2]
[338837267,1726935048827,-2321.436138,0.00015652,2]
[338837269,1726935048837,-980.651639,0.00015652,2]
[338837271,1726935048846,-533.59,0.00015653,2]
[338837273,1726935048855,-500.0,0.00015661,2]
[338837275,1726935048865,-500.0,0.00015661,2]
[338837277,1726935048875,-500.0,0.00015661,2]
[338837279,1726935048884,-383.53209323,0.00015661,2]
[338837281,1726935048894,-500.0,0.00015661,2]
[338837283,1726935048904,-500.0,0.00015661,2]
[338837285,1726935048914,-500.0,0.00015661,2]
[338837287,1726935048923,-500.0,0.00015662,2]
[338837289,1726935048933,-551.12,0.00015662,2]
[338837306,1726935049089,-500.0,0.00015662,2]
[338837309,1726935049100,-500.0,0.00015662,2]
[338837311,1726935049110,-502.32612693,0.00015662,2]
[338837312,1726935049119,-793.34,0.00015662,2]
[338837314,1726935049128,-500.0,0.00015662,2]
[338837317,1726935049138,-500.0,0.00015662,2]
[338837318,1726935049147,-200.0,0.00015662,2]
[338837320,1726935049157,-201.564278,0.00015663,2]
[338837323,1726935049166,-201.564278,0.00015663,2]
[338837325,1726935049176,-500.0,0.00015663,2]
[338837327,1726935049186,-584.33,0.00015663,2]
[338837329,1726935049195,-500.0,0.00015663,2]